bitfinex/quotes_BTCUSD_20251011
["timestamp","ask_amount","ask_price","bid_price","bid_amount"]
[1760150447969,0.4192319,112940.0,112930.0,0.00094673]
[1760150448282,0.3951419,112940.0,112930.0,0.06202673]
[1760150448491,0.3645,112940.0,112930.0,0.10789673]
[1760150448663,0.3645,112940.0,112930.0,0.20774673]
[1760150448850,0.3645,112940.0,112930.0,0.16374673]
[1760150449271,0.40785,112940.0,112930.0,0.06389673]
[1760150449895,0.40785,112940.0,112920.0,0.04587]
[1760150450184,0.40785,112940.0,112930.0,0.12541158]
[1760150450597,0.34,112940.0,112930.0,0.26309158]
[1760150451151,0.38899,112940.0,112930.0,0.17197158]
[1760150451889,0.43194,112940.0,112930.0,0.06237158]
[1760150452243,0.38899,112940.0,112930.0,0.12541158]
[1760150452645,0.38899,112940.0,112930.0,0.17197158]
[1760150452851,0.38942,112940.0,112930.0,0.17197158]
[1760150453598,0.38851,112940.0,112930.0,0.26309158]
[1760150453801,0.34,112940.0,112930.0,0.26309158]
[1760150455687,0.06037363,112950.0,112930.0,0.20072]
[1760150455874,0.10380363,112950.0,112940.0,0.04674997]
[1760150456081,0.15226363,112950.0,112940.0,0.04674997]
[1760150456506,0.15226363,112950.0,112940.0,0.00274997]
[1760150456934,0.18241553,112950.0,112940.0,0.00274997]
[1760150458450,0.17777401,112950.0,112940.0,0.00274997]
[1760150461804,0.51777401,112950.0,112940.0,0.00274997]
[1760150461960,0.51777401,112950.0,112940.0,0.03118593]
[1760150462155,0.74146899,112950.0,112940.0,0.03118593]
[1760150462453,0.53440587,112950.0,112940.0,0.03118593]
[1760150462692,0.52241639,112950.0,112940.0,0.03118593]
[1760150463553,0.15326449,112950.0,112940.0,0.03118593]
[1760150463807,0.10983449,112950.0,112930.0,0.13768]
[1760150464010,0.10983449,112950.0,112940.0,0.06304]
[1760150464828,0.10883449,112950.0,112940.0,0.06304]
[1760150465639,0.10883449,112950.0,112940.0,0.12541158]
[1760150465991,0.10883449,112950.0,112940.0,0.06237158]
[1760150466194,0.15313449,112950.0,112940.0,0.06237158]
[1760150466707,0.15213449,112950.0,112930.0,0.1234595]
[1760150466830,0.03057,112940.0,112930.0,0.1234595]
[1760150467255,0.07885,112940.0,112930.0,0.1864995]
[1760150467453,0.40137449,112950.0,112930.0,0.2776195]
[1760150467683,0.47376449,112950.0,112940.0,0.06227375]
[1760150467906,0.47549449,112950.0,112940.0,0.06227375]
[1760150468083,0.47049449,112950.0,112940.0,0.06227375]
[1760150469076,0.46949449,112950.0,112940.0,0.06227375]
[1760150469475,0.47049449,112950.0,112940.0,0.06227375]
[1760150472240,0.39710449,112950.0,112940.0,0.12361375]
[1760150473005,0.46976449,112950.0,112940.0,0.06227375]
[1760150474159,0.39710449,112950.0,112940.0,0.12361375]
[1760150474985,0.36788449,112950.0,112940.0,0.26540375]
[1760150475186,0.36788449,112950.0,112940.0,0.20313]
[1760150475814,0.36688449,112950.0,112940.0,0.20313]
[1760150478409,0.36688449,112950.0,112940.0,0.2800295]
[1760150478564,0.04734076,112960.0,112940.0,0.2800295]
[1760150478565,0.00015076,112960.0,112940.0,0.2800295]
[1760150478825,0.00015076,112960.0,112950.0,0.14179]
[1760150478959,5.181e-05,112990.0,112950.0,0.14179]
[1760150479139,5.181e-05,112990.0,112980.0,0.18797746]
[1760150479342,0.00329149,112990.0,112980.0,0.18797746]
[1760150479597,0.00329149,112990.0,112980.0,0.20313]
[1760150479894,0.00329149,112990.0,112980.0,0.31186444]
[1760150481590,0.00329149,112990.0,112980.0,0.20313]
[1760150482113,0.00329149,112990.0,112980.0,0.20413]
[1760150482319,0.00329149,112990.0,112980.0,0.28131834]
[1760150482521,0.00329149,112990.0,112980.0,0.26592277]
[1760150483503,0.00329149,112990.0,112980.0,0.26492277]
[1760150485325,0.00329149,112990.0,112980.0,0.22092277]
[1760150488151,0.00329149,112990.0,112980.0,0.22192277]
[1760150489543,0.00329149,112990.0,112980.0,0.1902819]
[1760150490343,5.08064753,113000.0,112990.0,0.5721587]
[1760150490679,4.91355932,113000.0,112990.0,0.9613349]
[1760150490870,4.91355932,113000.0,112990.0,0.97006935]
[1760150491210,4.91355932,113000.0,112990.0,1.07006934]
[1760150491465,4.91355932,113000.0,112990.0,1.07106934]
[1760150491809,4.91355932,113000.0,112990.0,0.97006935]
[1760150492247,4.91355932,113000.0,112990.0,1.07206934]
[1760150492451,4.91355932,113000.0,112990.0,0.97206935]
[1760150492651,4.91355932,113000.0,112990.0,0.9633349]
[1760150493039,4.91355932,113000.0,112990.0,0.6863281]
[1760150493214,4.91355932,113000.0,112990.0,0.9633349]
[1760150493830,4.91355932,113000.0,112990.0,1.07206934]
[1760150494266,4.91355932,113000.0,112990.0,1.07049076]
[1760150494518,4.91355932,113000.0,112990.0,1.06849076]
[1760150494674,4.91355932,113000.0,112990.0,0.9613349]
[1760150494875,4.91355932,113000.0,112990.0,0.9633349]
[1760150495314,4.91355932,113000.0,112990.0,1.07042951]
[1760150495744,4.91355932,113000.0,112990.0,1.04542952]
[1760150495876,4.91413247,113000.0,112990.0,1.04542952]
[1760150496304,4.91413247,113000.0,112990.0,1.07042951]
[1760150498576,4.91413247,113000.0,112990.0,0.96515982]
[1760150499305,4.91413247,113000.0,112990.0,0.98480773]
[1760150499510,4.91413247,113000.0,112990.0,1.09190234]
[1760150500463,4.79444834,113000.0,112990.0,1.09190234]
[1760150500692,4.78944834,113000.0,112990.0,1.09190234]
[1760150501043,4.78944834,113000.0,112990.0,0.97980773]
[1760150501655,4.78944834,113000.0,112990.0,1.08690234]
[1760150502780,4.78944834,113000.0,112990.0,1.08683624]
[1760150503168,4.78944834,113000.0,112990.0,0.97980773]
[1760150504053,4.76544834,113000.0,112990.0,1.08685715]
[1760150504255,4.59790805,113000.0,112990.0,1.08685715]
[1760150504467,4.59790805,113000.0,112990.0,0.97980773]
[1760150504670,4.59790805,113000.0,112990.0,0.99759773]
[1760150504881,4.59790805,113000.0,112990.0,0.99559773]
[1760150505280,3.75509347,113000.0,112990.0,1.10255587]
[1760150505486,3.54870884,113000.0,112990.0,1.10255587]
[1760150505679,3.36549887,113000.0,112990.0,1.10255587]
[1760150505816,3.16748971,113000.0,112990.0,1.10255587]
[1760150506018,2.98389607,113000.0,112990.0,1.10255587]
[1760150506268,2.73549322,113000.0,112990.0,1.10455587]
[1760150506472,2.598043,113000.0,112990.0,0.99759773]
[1760150506680,2.47807866,113000.0,112990.0,0.99559773]
[1760150507026,2.01328193,113000.0,112990.0,0.99559773]
[1760150507228,1.92915179,113000.0,112990.0,0.99559773]
[1760150507424,1.6740651,113000.0,112990.0,0.99559773]
[1760150507728,1.60841055,113000.0,112990.0,0.99859773]
[1760150508159,1.01187916,113000.0,112990.0,0.99859773]
[1760150508531,0.49887528,113000.0,112990.0,2.3281011]
[1760150508677,0.42006524,113000.0,112990.0,2.3103111]
[1760150509086,1e-08,113000.0,112990.0,2.3103111]
[1760150509338,1e-08,113000.0,112990.0,2.3101133]
[1760150509534,1e-08,113000.0,112990.0,2.3131133]
[1760150509999,1e-08,113000.0,112990.0,0.98360993]
[1760150510204,1e-08,113000.0,112990.0,0.98060993]
[1760150510346,0.07561184,113050.0,113040.0,0.56499997]
[1760150510539,0.07576256,113050.0,113040.0,0.76485997]
[1760150510942,0.07576256,113050.0,113040.0,0.8417885]
[1760150511149,0.07576256,113050.0,113040.0,0.94178849]
[1760150511345,0.07576256,113050.0,113040.0,0.8417885]
[1760150511569,0.00533072,113050.0,113040.0,0.94178849]
[1760150512014,0.00533072,113050.0,113040.0,0.66485998]
[1760150512143,0.00533072,113050.0,113040.0,0.56485999]
[1760150512356,0.00533072,113050.0,113040.0,0.66485998]
[1760150512588,0.00533072,113050.0,113040.0,0.76685997]
[1760150512806,0.00533072,113050.0,113040.0,0.79701187]
[1760150513541,0.00533072,113050.0,113040.0,0.66685998]
[1760150513746,0.00533072,113050.0,113040.0,0.38811232]
[1760150513948,0.00533072,113050.0,113040.0,0.26311234]
[1760150514194,0.00533072,113050.0,113040.0,0.20186]
[1760150514468,0.00533072,113050.0,113040.0,0.26311234]
[1760150515025,0.00533072,113050.0,113040.0,0.28811233]
[1760150515429,0.00533072,113050.0,113040.0,0.35701188]
[1760150515949,0.01283017,113050.0,113040.0,0.5339404]
[1760150516313,0.01283017,113050.0,113040.0,1.0504885]
[1760150516445,0.01283017,113050.0,113040.0,0.8739404]
[1760150516650,0.01283017,113050.0,113040.0,0.97394039]
[1760150517440,0.01283017,113050.0,113040.0,0.8739404]
[1760150517641,0.01283017,113050.0,113040.0,0.97394039]
[1760150518392,0.01283017,113050.0,113040.0,0.79701187]
[1760150518595,0.01283017,113050.0,113040.0,0.8739404]
[1760150519015,0.01283017,113050.0,113040.0,0.98110776]
[1760150519229,0.0052,113070.0,113060.0,0.15515188]
[1760150519443,0.00533332,113070.0,113060.0,0.26307614]
[1760150519583,0.0064786,113070.0,113060.0,0.26307614]
[1760150519805,0.0064786,113070.0,113060.0,0.41483614]
[1760150520367,0.12526648,113110.0,113060.0,0.30722998]
[1760150520602,0.12539982,113110.0,113100.0,0.10376198]
[1760150520807,0.12539982,113110.0,113100.0,0.14845089]
[1760150521013,0.12539982,113110.0,113100.0,0.04616089]
[1760150521014,0.62161982,113110.0,113100.0,0.04616089]
[1760150521208,0.65177172,113110.0,113090.0,0.04616089]
[1760150521352,0.04539,113100.0,113090.0,0.04616089]
[1760150521564,0.5261619,113100.0,113090.0,0.04616089]
[1760150521758,0.5261619,113100.0,113080.0,0.07663089]
[1760150522040,0.4319219,113100.0,113080.0,0.07663089]
[1760150522215,0.4319219,113100.0,113090.0,0.04222]
[1760150522451,0.4319219,113100.0,113080.0,0.07485089]
[1760150523026,0.4319219,113100.0,113080.0,0.16654089]
[1760150523593,0.4319219,113100.0,113090.0,0.15176]
[1760150523594,0.34,113100.0,113090.0,0.15176]
[1760150524092,0.05496798,113110.0,113090.0,0.19792089]
[1760150524372,0.05496798,113110.0,113100.0,0.1357]
[1760150524558,0.05496798,113110.0,113100.0,0.19577]
[1760150524751,0.25468798,113110.0,113100.0,0.04401]
[1760150524960,0.25468798,113110.0,113080.0,0.07485089]
[1760150525155,0.16001798,113110.0,113090.0,0.04401]
[1760150525631,0.16001798,113110.0,113100.0,0.06007]
[1760150525836,0.05496798,113110.0,113100.0,0.06007]
[1760150526007,0.05496798,113110.0,113100.0,0.1826024]
[1760150526155,0.05725754,113110.0,113100.0,0.19792089]
[1760150526592,0.05725754,113110.0,113100.0,0.13706907]
[1760150526836,0.05725754,113110.0,113100.0,0.09090818]
[1760150526837,0.16230754,113110.0,113100.0,0.09090818]
[1760150526988,0.10265754,113110.0,113100.0,0.13706907]
[1760150527214,0.05725754,113110.0,113100.0,0.13706907]
[1760150527412,0.05725754,113110.0,113100.0,0.19792089]
[1760150527620,0.05725754,113110.0,113100.0,0.15176]
[1760150528003,0.41078209,113140.0,113100.0,0.19716]
[1760150528228,0.02588386,113140.0,113130.0,0.04401]
[1760150528441,0.00050177,113140.0,113130.0,0.23361779]
[1760150529043,0.00050177,113140.0,113130.0,0.24903168]
[1760150529624,0.00050177,113140.0,113130.0,0.22721849]
[1760150529742,0.00050177,113140.0,113130.0,0.20279]
[1760150529949,0.00050177,113140.0,113130.0,0.22721849]
[1760150530548,0.00050177,113140.0,113130.0,0.20279]
[1760150530989,0.00050177,113140.0,113130.0,0.24896888]
[1760150532598,0.00050177,113140.0,113130.0,0.18388276]
[1760150532801,0.00050177,113140.0,113130.0,0.24896888]
[1760150533054,0.00050177,113140.0,113130.0,0.20279]
[1760150533720,0.00221816,113140.0,113130.0,0.20279]
[1760150535343,0.00221816,113140.0,113130.0,0.26431454]
[1760150535541,0.00221816,113140.0,113130.0,0.20279]
[1760150536398,0.00221816,113140.0,113130.0,0.26428064]
[1760150536807,0.00221816,113140.0,113130.0,0.26429346]
[1760150537225,0.00221816,113140.0,113130.0,0.16840346]
[1760150537404,0.52045006,113140.0,113130.0,0.03076794]
[1760150537605,0.54706939,113140.0,113130.0,0.03076794]
[1760150538067,0.54706939,113140.0,113130.0,0.07691081]
[1760150538475,0.54706939,113140.0,113120.0,0.05767794]
[1760150538658,0.38761,113130.0,113120.0,0.05767794]
[1760150538861,0.5150219,113130.0,113120.0,0.03076794]
[1760150539067,0.4219119,113130.0,113120.0,0.03076794]
[1760150539659,0.0301519,113120.0,113110.0,0.07298794]
[1760150539870,0.0301519,113120.0,113110.0,0.18202081]
[1760150540115,0.04761,113130.0,113110.0,0.24714287]
[1760150540288,0.0777619,113130.0,113120.0,0.07928999]
[1760150540804,0.0301519,113120.0,113110.0,0.07692286]
[1760150541007,0.1299419,113120.0,113110.0,0.03077999]
[1760150541186,0.1315819,113120.0,113110.0,0.03077999]
[1760150541701,0.1315819,113120.0,113100.0,0.07712491]
[1760150541918,0.0768619,113110.0,113100.0,0.07712491]
[1760150542082,0.1289919,113110.0,113100.0,0.03172491]
[1760150542286,0.0301519,113110.0,113100.0,0.14312491]
[1760150543172,0.0747311,113140.0,113100.0,0.25491755]
[1760150543360,0.06426704,113150.0,113130.0,0.04851]
[1760150543566,0.0301519,113140.0,113130.0,0.04851]
[1760150543764,0.0301519,113140.0,113130.0,0.1114]
[1760150544108,0.0777619,113140.0,113130.0,0.0674]
[1760150544309,0.03817636,113150.0,113130.0,0.16329]
[1760150544636,0.01155748,113150.0,113140.0,0.04851]
[1760150545420,0.04170938,113150.0,113140.0,0.04851]
[1760150545608,0.04170938,113150.0,113140.0,0.20729]
[1760150545609,0.00015044,113150.0,113140.0,0.20729]
[1760150547281,0.00015044,113150.0,113140.0,0.23805982]
[1760150548071,0.00015044,113150.0,113140.0,0.28421455]
[1760150548282,0.00015044,113150.0,113140.0,0.23805982]
[1760150548646,0.00015044,113150.0,113140.0,0.20729]
[1760150549608,0.00015044,113150.0,113140.0,0.26879346]
[1760150550050,0.00243876,113150.0,113140.0,0.20729]
[1760150550358,0.00243876,113150.0,113140.0,0.26879346]
[1760150551713,0.00243876,113150.0,113140.0,0.22479346]
[1760150552626,0.00243876,113150.0,113140.0,0.16329]
[1760150553410,0.01,113180.0,113140.0,0.71390073]
[1760150553605,0.01,113180.0,113170.0,0.04851]
[1760150553883,0.01,113180.0,113170.0,0.20729]
[1760150554089,0.01,113180.0,113170.0,0.26863108]
[1760150554236,0.01,113180.0,113170.0,0.20729]
[1760150554479,0.01,113180.0,113170.0,0.26861565]
[1760150559160,0.0117155,113180.0,113170.0,0.26861565]
[1760150559516,0.0117155,113180.0,113170.0,0.16329]
[1760150559875,0.0117155,113180.0,113170.0,0.22461565]
[1760150560451,0.0117155,113180.0,113170.0,0.16329]
[1760150560814,0.0117155,113180.0,113170.0,0.22461565]
[1760150561301,0.0117155,113180.0,113170.0,0.16329]
[1760150562887,0.02715922,113190.0,113170.0,0.16329]
[1760150563108,0.02730963,113190.0,113180.0,0.14518]
[1760150563312,0.02730963,113190.0,113180.0,0.21092]
[1760150564612,0.01852995,113190.0,113180.0,0.21092]
[1760150565802,0.01852995,113190.0,113180.0,0.27224565]
[1760150565998,0.01852995,113190.0,113180.0,0.21092]
[1760150566549,0.01852995,113190.0,113180.0,0.28759635]
[1760150566750,0.01852995,113190.0,113180.0,0.21092]
[1760150566995,0.01852995,113190.0,113180.0,0.21192]
[1760150567354,0.01852995,113190.0,113180.0,0.28859635]
[1760150567595,0.01852995,113190.0,113180.0,0.21192]
[1760150568334,0.01852995,113190.0,113180.0,0.27314336]
[1760150568700,0.01910166,113190.0,113180.0,0.27314336]
[1760150568870,0.01910166,113190.0,113180.0,0.21192]
[1760150569272,0.01910166,113190.0,113180.0,0.21092]
[1760150569623,0.01910166,113190.0,113180.0,0.27214336]
[1760150570429,0.01910166,113190.0,113180.0,0.21092]
[1760150570615,0.38208,113200.0,113180.0,0.48930285]
[1760150570796,0.25494,113200.0,113190.0,0.20674642]
[1760150571003,0.25494,113200.0,113190.0,0.23174641]
[1760150571242,0.25551163,113200.0,113190.0,0.23174641]
[1760150571804,0.25551163,113200.0,113190.0,0.19781411]
[1760150572056,0.25551163,113200.0,113190.0,0.27449046]
[1760150574082,0.25551163,113200.0,113190.0,0.27549046]
[1760150574282,0.25551163,113200.0,113190.0,0.22320635]
[1760150574424,0.25551163,113200.0,113190.0,0.25049047]
[1760150575059,0.25551163,113200.0,113190.0,0.22320635]
[1760150575625,0.25551163,113200.0,113190.0,0.25049047]
[1760150576032,0.25551163,113200.0,113190.0,0.61549046]
[1760150576282,0.13599736,113200.0,113190.0,0.53881411]
[1760150576487,0.13599736,113200.0,113190.0,0.56314282]
[1760150576845,0.13599736,113200.0,113190.0,0.59042694]
[1760150577531,0.13599736,113200.0,113190.0,0.22314282]
[1760150577909,0.08452052,113230.0,113190.0,0.22314282]
[1760150578134,0.18054091,113230.0,113220.0,0.03066577]
[1760150578317,0.24334091,113230.0,113220.0,0.03066577]
[1760150578897,0.20782039,113230.0,113220.0,0.03066577]
[1760150579108,0.20782039,113230.0,113210.0,0.03265416]
[1760150579497,0.049,113220.0,113210.0,0.03265416]
[1760150579858,0.04915039,113230.0,113210.0,0.03265416]
[1760150580195,0.14502039,113230.0,113210.0,0.03265416]
[1760150580590,0.14502039,113230.0,113190.0,0.10761785]
[1760150581354,0.049,113220.0,113190.0,0.10761785]
[1760150581554,0.1118,113200.0,113170.0,0.06131785]
[1760150581700,0.14487,113190.0,113170.0,0.06131785]
[1760150581909,0.1118,113180.0,113170.0,0.06131785]
[1760150582138,0.049,113190.0,113170.0,0.06131785]
[1760150582350,0.10575591,113210.0,113170.0,0.06131785]
[1760150582770,0.10575591,113210.0,113160.0,0.06131785]
[1760150582939,0.10575591,113210.0,113170.0,0.00015041]
[1760150583127,0.10575591,113210.0,113170.0,0.06146826]
[1760150583492,0.049,113210.0,113170.0,0.06146826]
[1760150583818,0.049,113210.0,113190.0,0.00094392]
[1760150584181,0.1118,113200.0,113190.0,0.00094392]
[1760150584586,0.20767,113200.0,113190.0,0.00094392]
[1760150585098,0.2378219,113200.0,113190.0,0.00094392]
[1760150585810,0.049,113200.0,113190.0,0.00094392]
[1760150585968,0.049,113210.0,113190.0,0.00094392]
[1760150586171,0.20767,113200.0,113190.0,0.00094392]
[1760150586377,0.2378219,113200.0,113190.0,0.00094392]
[1760150586563,0.1419519,113200.0,113190.0,0.00094392]
[1760150587984,0.2378219,113200.0,113190.0,0.00094392]
[1760150588389,0.07559924,113220.0,113190.0,0.00094392]
[1760150588390,0.02659924,113220.0,113190.0,0.00094392]
[1760150588611,0.049,113230.0,113190.0,0.06226177]
[1760150588812,0.07506521,113240.0,113200.0,0.06159207]
[1760150589028,0.16744521,113240.0,113200.0,0.06131785]
[1760150589200,0.11192155,113210.0,113200.0,0.06131785]
[1760150589600,0.11192155,113210.0,113190.0,0.06226177]
[1760150589826,0.04847,113200.0,113190.0,0.06226177]
[1760150590380,0.04904155,113210.0,113190.0,0.06226177]
[1760150590716,0.04904155,113210.0,113200.0,9e-05]
[1760150590917,0.00057155,113210.0,113200.0,9e-05]
[1760150591121,0.00057155,113210.0,113200.0,0.06140785]
[1760150592141,0.04904155,113210.0,113200.0,0.06140785]
[1760150592660,0.00057155,113210.0,113200.0,0.06146785]
[1760150592882,0.00057155,113210.0,113200.0,0.07676282]
[1760150593479,0.16711638,113250.0,113200.0,0.00015]
[1760150593683,0.14052251,113250.0,113220.0,0.06152479]
[1760150593889,0.14052251,113250.0,113230.0,6e-05]
[1760150594090,0.14052251,113250.0,113230.0,0.00100237]
[1760150594269,0.14052251,113250.0,113230.0,6e-05]
[1760150594667,0.04847,113260.0,113240.0,0.08626]
[1760150594868,0.04897158,113260.0,113240.0,0.08626]
[1760150595502,0.14135158,113260.0,113240.0,0.08626]
[1760150596052,0.04897158,113260.0,113240.0,0.1347]
[1760150596709,0.14135158,113260.0,113240.0,0.08626]
[1760150596936,0.04897158,113260.0,113240.0,0.08626]
[1760150598923,0.00050158,113260.0,113250.0,0.04844]
[1760150599128,0.00050158,113260.0,113250.0,0.06204]
[1760150599919,0.06338158,113260.0,113250.0,0.06204]
[1760150600243,0.11185158,113260.0,113240.0,0.11869582]
[1760150600622,0.11185158,113260.0,113240.0,0.07025582]
[1760150600756,0.20423158,113260.0,113240.0,0.07025582]
[1760150601362,0.04847,113250.0,113240.0,0.02422]
[1760150601600,0.1415019,113250.0,113230.0,0.02625582]
[1760150601762,0.04847,113240.0,113230.0,0.02625582]
[1760150601960,0.0301519,113250.0,113240.0,0.03875]
[1760150603192,0.00050158,113260.0,113240.0,0.06297]
[1760150604051,0.04897158,113260.0,113240.0,0.03875]
[1760150604253,0.14135158,113260.0,113240.0,0.03875]
[1760150604624,0.05182797,113260.0,113240.0,0.03875]
[1760150604808,0.04897158,113260.0,113240.0,0.03875]
[1760150605009,0.04897158,113260.0,113240.0,0.06297]
[1760150605209,0.00050158,113260.0,113240.0,0.1243243]
[1760150605420,0.04897158,113260.0,113240.0,0.03875]
[1760150605591,0.04897158,113260.0,113240.0,0.06297]
[1760150606145,0.04897158,113260.0,113240.0,0.03875]
[1760150606670,0.00050158,113260.0,113240.0,0.06297]
[1760150606995,0.00050158,113260.0,113240.0,0.03875]
[1760150607207,0.00050158,113260.0,113250.0,0.02422]
[1760150607640,0.00050158,113260.0,113250.0,0.03875]
[1760150609258,0.00050158,113260.0,113250.0,0.06297]
[1760150611338,0.00050158,113260.0,113250.0,0.06368506]
[1760150611696,0.00335797,113260.0,113250.0,0.1243243]
[1760150611871,0.00335797,113260.0,113250.0,0.15041617]
[1760150612047,0.00335797,113260.0,113250.0,0.08906187]
[1760150612249,0.00335797,113260.0,113250.0,0.16596785]
[1760150613759,0.00335797,113260.0,113250.0,0.16696785]
[1760150614792,0.00335797,113260.0,113250.0,0.53196784]
[1760150614978,0.0002,113270.0,113260.0,0.02499999]
[1760150615146,0.00035038,113270.0,113260.0,0.13106122]
[1760150615361,0.00035038,113270.0,113260.0,0.21825122]
[1760150615553,0.005,113280.0,113270.0,0.02499999]
[1760150615757,0.005,113280.0,113270.0,0.16210691]
[1760150616198,0.005,113280.0,113270.0,0.50210691]
[1760150616412,0.005,113280.0,113270.0,0.19781278]
[1760150616548,0.005,113280.0,113270.0,0.24477065]
[1760150616755,0.005,113280.0,113270.0,0.13707218]
[1760150617569,0.005,113280.0,113270.0,0.13807218]
[1760150618160,0.005,113280.0,113270.0,0.06058]
[1760150618393,0.005,113280.0,113270.0,0.13707218]
[1760150618595,0.005,113280.0,113270.0,0.1218097]
[1760150619699,0.005,113280.0,113270.0,0.1228097]
[1760150620074,0.005,113280.0,113270.0,0.06158]
[1760150620274,0.005,113280.0,113270.0,0.13707218]
[1760150620523,0.005,113280.0,113270.0,0.13807218]
[1760150621087,0.00557102,113280.0,113270.0,0.13807218]
[1760150621917,0.00557102,113280.0,113270.0,0.06158]
[1760150622348,0.00557102,113280.0,113270.0,0.13807218]
[1760150622560,0.00557102,113280.0,113270.0,0.13707218]
[1760150622755,0.00557102,113280.0,113270.0,0.03728]
[1760150622955,0.00557102,113280.0,113270.0,0.13807218]
[1760150623205,0.00557102,113280.0,113270.0,0.06158]
[1760150623410,0.00557102,113280.0,113270.0,0.06058]
[1760150623614,0.00557102,113280.0,113270.0,0.16827847]
[1760150623948,0.00557102,113280.0,113270.0,0.16927847]
[1760150624268,0.00557102,113280.0,113270.0,0.19327846]
[1760150624720,0.00557102,113280.0,113270.0,0.19427846]
[1760150624935,5.258e-05,113290.0,113270.0,0.19427846]
[1760150625159,5.258e-05,113290.0,113280.0,0.09988043]
[1760150625369,5.258e-05,113290.0,113280.0,0.15599846]
[1760150625581,5.258e-05,113290.0,113280.0,0.19327846]
[1760150625777,0.055,113300.0,113280.0,0.19327846]
[1760150625981,0.055,113300.0,113280.0,0.16997846]
[1760150626129,0.055,113300.0,113290.0,0.13099847]
[1760150626481,0.055,113300.0,113290.0,0.16827847]
[1760150627458,0.055,113300.0,113290.0,0.53327846]
[1760150627652,0.055,113300.0,113290.0,0.70981654]
[1760150627856,0.055,113300.0,113290.0,0.60211807]
[1760150628066,0.055,113300.0,113290.0,0.52657998]
[1760150628497,0.055,113300.0,113290.0,0.42657999]
[1760150628703,0.055,113300.0,113290.0,0.58272545]
[1760150628907,0.055,113300.0,113290.0,0.70971491]
[1760150629149,0.055,113300.0,113290.0,0.91640489]
[1760150629351,0.055,113300.0,113290.0,0.91540489]
[1760150629725,0.055,113300.0,113290.0,0.91740489]
[1760150630005,0.055,113300.0,113290.0,0.89041542]
[1760150630213,0.055,113300.0,113290.0,0.88841542]
[1760150630654,0.055,113300.0,113290.0,0.89041542]
[1760150630870,0.055,113300.0,113290.0,0.91740489]
[1760150632350,0.055,113300.0,113290.0,0.91540489]
[1760150632751,0.055,113300.0,113290.0,0.89041542]
[1760150633692,0.00595139,113320.0,113300.0,0.17652039]
[1760150633893,0.00610165,113320.0,113310.0,0.38829999]
[1760150634042,0.00610165,113320.0,113310.0,0.44887999]
[1760150634981,8e-05,113350.0,113320.0,0.02499999]
[1760150635193,8e-05,113350.0,113330.0,0.06102782]
[1760150635396,8e-05,113350.0,113330.0,0.09830782]
[1760150635766,8e-05,113350.0,113330.0,0.07760782]
[1760150636679,8e-05,113350.0,113330.0,0.07860782]
[1760150636890,8e-05,113350.0,113330.0,0.10559729]
[1760150637089,0.00362419,113340.0,113330.0,0.10559729]
[1760150637223,0.10058374,113390.0,113330.0,0.11354947]
[1760150637436,0.100734,113390.0,113380.0,0.02498]
[1760150637637,0.213844,113390.0,113380.0,0.02498]
[1760150637835,0.213844,113390.0,113380.0,0.09049]
[1760150638061,0.14341216,113390.0,113380.0,0.09049]
[1760150638276,0.14341216,113390.0,113380.0,0.16375]
[1760150638277,0.00015026,113390.0,113380.0,0.16375]
[1760150638623,0.00015026,113390.0,113380.0,0.24000387]
[1760150638860,0.00015026,113390.0,113380.0,0.20950232]
[1760150639262,0.11326026,113390.0,113380.0,0.12095147]
[1760150639689,0.11326026,113390.0,113380.0,0.05544147]
[1760150639905,0.20980026,113390.0,113380.0,0.02498]
[1760150640292,0.20980026,113390.0,113370.0,0.02498]
[1760150640502,0.04789,113380.0,113370.0,0.07828789]
[1760150640990,0.11311,113380.0,113370.0,0.07828789]
[1760150641407,0.20965,113380.0,113370.0,0.02285034]
[1760150641614,0.2398019,113380.0,113370.0,0.02285034]
[1760150641993,0.1432619,113380.0,113370.0,0.02285034]
[1760150642215,0.1432619,113380.0,113370.0,0.04783034]
[1760150642372,0.0301519,113380.0,113370.0,0.11334034]
[1760150642593,0.04804026,113390.0,113370.0,0.11334034]
[1760150642813,0.03030216,113390.0,113380.0,0.02285034]
[1760150643106,0.00300173,113390.0,113380.0,0.02285034]
[1760150643323,0.00300173,113390.0,113380.0,0.04436034]
[1760150644563,0.21265173,113390.0,113370.0,0.05544147]
[1760150644750,0.04789,113380.0,113370.0,0.05544147]
[1760150644953,0.04804026,113390.0,113370.0,0.17306147]
[1760150645602,0.00015026,113390.0,113370.0,0.17306147]
[1760150645852,0.00015026,113390.0,113380.0,0.05211]
[1760150646217,0.00015026,113390.0,113380.0,0.11762]
[1760150646422,0.00015026,113390.0,113380.0,0.14808147]
[1760150646827,0.00015026,113390.0,113380.0,0.16337232]
[1760150647202,0.00015026,113390.0,113380.0,0.11762]
[1760150648039,0.00015026,113390.0,113380.0,0.16326142]
[1760150648251,0.00015026,113390.0,113380.0,0.11762]
[1760150648481,0.0021715,113400.0,113380.0,0.11762]
[1760150648697,0.00267218,113400.0,113390.0,0.12816686]
[1760150649148,0.00267218,113400.0,113390.0,0.19085686]
[1760150649357,0.00267218,113400.0,113390.0,0.16043412]
[1760150651058,0.00267218,113400.0,113390.0,0.11643412]
[1760150651487,0.00609364,113400.0,113390.0,0.11643412]
[1760150652882,0.11644364,113400.0,113390.0,0.00163412]
[1760150653259,0.11644364,113400.0,113390.0,0.0931515]
[1760150653465,0.11644364,113400.0,113370.0,0.13802259]
[1760150653596,0.20852218,113400.0,113370.0,0.13802259]
[1760150654035,0.20852218,113400.0,113390.0,0.03048758]
[1760150654439,0.11302218,113400.0,113390.0,0.03048758]
[1760150654639,0.20852218,113400.0,113390.0,0.03048758]
[1760150655236,0.11302218,113400.0,113390.0,0.03048758]
[1760150655426,0.20852218,113400.0,113390.0,0.03048758]
[1760150655828,0.11302218,113400.0,113390.0,0.09317758]
[1760150656030,0.11764586,113400.0,113390.0,0.09317758]
[1760150656241,0.14779776,113400.0,113390.0,0.09317758]
[1760150656441,0.14779776,113400.0,113390.0,0.03048758]
[1760150656898,0.14562626,113400.0,113390.0,0.03048758]
[1760150657463,0.24112626,113400.0,113390.0,0.03048758]
[1760150658324,0.14562626,113400.0,113390.0,0.03048758]
[1760150658509,0.24112626,113400.0,113390.0,0.03048758]
[1760150658700,0.24112626,113400.0,113370.0,0.06357758]
[1760150658896,0.24112626,113400.0,113380.0,0.01566]
[1760150659109,0.00512436,113400.0,113390.0,0.06175]
[1760150659316,0.00512436,113400.0,113390.0,0.10035]
[1760150659520,0.00854582,113400.0,113390.0,0.10035]
[1760150659953,0.00854582,113400.0,113390.0,0.06175]
[1760150660217,0.00854582,113400.0,113390.0,0.10035]
[1760150660374,0.00392214,113400.0,113390.0,0.10035]
[1760150662469,0.00392214,113400.0,113390.0,0.16128259]